bitfinex/quotes_BTCUSD_20240915
["timestamp","ask_amount","ask_price","bid_price","bid_amount"]
[1726418434960,0.203286,60200.0,60199.0,1.47274518]
[1726418435186,0.203286,60200.0,60199.0,1.49755561]
[1726418435643,0.203286,60200.0,60199.0,1.76152532]
[1726418435861,0.203286,60200.0,60199.0,1.6869924]
[1726418436796,0.203286,60200.0,60199.0,1.7650472]
[1726418437025,0.203286,60200.0,60199.0,1.6870058]
[1726418437232,0.203286,60200.0,60199.0,1.78638303]
[1726418437911,0.203286,60200.0,60199.0,1.6870058]
[1726418438123,0.203286,60200.0,60199.0,1.78651605]
[1726418438351,0.203286,60200.0,60199.0,1.6870058]
[1726418438567,0.001646,60202.0,60201.0,0.83055]
[1726418438785,0.001646,60202.0,60201.0,1.31596421]
[1726418439628,0.001646,60202.0,60201.0,1.64818421]
[1726418439833,0.001646,60202.0,60201.0,1.3842145]
[1726418440072,0.001646,60202.0,60201.0,1.65840888]
[1726418440307,0.002646,60202.0,60201.0,1.58375513]
[1726418440529,0.002646,60202.0,60201.0,0.19744583]
[1726418440530,0.332046,60202.0,60201.0,0.19744583]
[1726418440759,0.333046,60202.0,60201.0,0.18511]
[1726418440966,0.34912317,60202.0,60201.0,0.20647053]
[1726418441153,0.34912317,60202.0,60201.0,0.18511]
[1726418441401,0.54672317,60202.0,60201.0,0.16611]
[1726418441619,0.54772317,60202.0,60201.0,0.17211]
[1726418441845,0.54872317,60202.0,60201.0,0.17811]
[1726418445971,0.54872317,60202.0,60201.0,0.22795726]
[1726418446204,0.54872317,60202.0,60201.0,0.17811]
[1726418447366,0.54872317,60202.0,60201.0,0.012]
[1726418447907,0.54872317,60202.0,60197.0,0.04984726]
[1726418447908,0.166118,60198.0,60197.0,0.04984726]
[1726418448152,0.353218,60198.0,60195.0,0.000823]
[1726418448635,0.01604214,60197.0,60195.0,0.000823]
[1726418448892,0.18216314,60197.0,60195.0,0.000823]
[1726418449618,0.01604214,60197.0,60196.0,0.12545492]
[1726418450349,0.02104214,60197.0,60196.0,0.12545492]
[1726418450838,0.02104214,60197.0,60196.0,0.29157792]
[1726418450839,0.01604214,60197.0,60196.0,0.29157792]
[1726418451098,0.02004214,60197.0,60196.0,0.29157792]
[1726418451357,0.02404214,60197.0,60196.0,0.29157792]
[1726418453754,0.02004214,60197.0,60196.0,0.29157792]
[1726418453994,0.02404214,60197.0,60196.0,0.29157792]
[1726418454246,0.02004214,60197.0,60196.0,0.29157792]
[1726418454500,0.02304214,60197.0,60196.0,0.29157792]
[1726418455500,0.02304214,60197.0,60196.0,0.62382492]
[1726418455990,0.01904214,60197.0,60196.0,0.62382492]
[1726418456248,0.02204214,60197.0,60196.0,0.62382492]
[1726418456498,0.02204214,60197.0,60196.0,0.12545492]
[1726418456740,0.02204214,60197.0,60196.0,0.29157792]
[1726418457474,0.04810672,60197.0,60196.0,0.29157792]
[1726418458182,0.04810672,60197.0,60196.0,0.62382492]
[1726418458410,0.04810672,60197.0,60196.0,0.29157792]
[1726418458885,0.04810672,60197.0,60196.0,0.29240092]
[1726418459358,0.02204214,60197.0,60196.0,0.62464792]
[1726418463081,0.02204214,60197.0,60196.0,0.29240092]
[1726418463299,0.02204214,60197.0,60196.0,0.12627792]
[1726418464212,0.02204214,60197.0,60196.0,0.29240092]
[1726418464660,0.18816314,60197.0,60196.0,0.12627792]
[1726418465321,0.02204214,60197.0,60196.0,0.12627792]
[1726418465764,0.18816314,60197.0,60196.0,0.12627792]
[1726418466002,0.18816314,60197.0,60196.0,0.000823]
[1726418467993,0.02204214,60197.0,60196.0,0.000823]
[1726418468440,0.02204214,60197.0,60196.0,0.166946]
[1726418468654,0.02204214,60197.0,60196.0,0.000823]
[1726418469347,0.01604214,60197.0,60196.0,0.000823]
[1726418469603,0.01904214,60197.0,60196.0,0.000823]
[1726418470000,0.01604214,60197.0,60196.0,0.000823]
[1726418470687,0.01904214,60197.0,60196.0,0.000823]
[1726418471139,0.01604214,60197.0,60196.0,0.000823]
[1726418471565,0.01704214,60197.0,60196.0,0.000823]
[1726418472907,0.18316314,60197.0,60196.0,0.000823]
[1726418473341,0.51540514,60197.0,60196.0,0.000823]
[1726418473808,0.18316314,60197.0,60196.0,0.000823]
[1726418474727,0.51540514,60197.0,60196.0,0.000823]
[1726418475176,0.84764714,60197.0,60196.0,0.000823]
[1726418480438,0.87371376,60197.0,60196.0,0.000823]
[1726418481103,0.54147176,60197.0,60196.0,0.000823]
[1726418481319,0.54147176,60197.0,60196.0,0.12627792]
[1726418484292,0.87371376,60197.0,60196.0,0.000823]
[1726418484531,0.54147176,60197.0,60196.0,0.000823]
[1726418484763,0.87371376,60197.0,60196.0,0.000823]
[1726418491304,0.54147176,60197.0,60196.0,0.000823]
[1726418492030,0.87371376,60197.0,60196.0,0.000823]
[1726418492993,0.54147176,60197.0,60196.0,0.000823]
[1726418499308,0.54147176,60197.0,60196.0,5.996e-05]
[1726418505012,0.87371376,60197.0,60196.0,5.996e-05]
[1726418505223,0.54147176,60197.0,60196.0,5.996e-05]
[1726418505622,0.54147176,60197.0,60195.0,0.000823]
[1726418505853,0.49837,60196.0,60195.0,0.000823]
[1726418506297,0.51211464,60196.0,60195.0,0.000823]
[1726418507569,0.51211464,60196.0,60195.0,0.001823]
[1726418511604,0.166129,60195.0,60191.0,0.12542512]
[1726418512028,0.01373239,60194.0,60191.0,0.12542512]
[1726418512466,0.01373239,60194.0,60191.0,0.29156212]
[1726418512924,0.01373239,60194.0,60191.0,0.29256212]
[1726418513353,0.01373239,60194.0,60191.0,0.29156212]
[1726418513566,0.01373239,60194.0,60191.0,0.29356212]
[1726418513776,0.01373239,60194.0,60191.0,0.29656212]
[1726418516625,0.17986239,60194.0,60191.0,0.13042512]
[1726418517310,0.17986239,60194.0,60191.0,0.13124812]
[1726418520178,0.01373239,60194.0,60191.0,0.13124812]
[1726418520465,0.01373239,60194.0,60193.0,0.498396]
[1726418520679,0.01373239,60194.0,60191.0,0.005823]
[1726418520903,0.17986139,60194.0,60193.0,0.12542512]
[1726418521122,0.166129,60194.0,60193.0,0.12542512]
[1726418522034,0.498388,60194.0,60193.0,0.12542512]
[1726418522967,0.498388,60194.0,60191.0,0.005823]
[1726418522968,0.332259,60194.0,60191.0,0.003823]
[1726418523448,0.166135,60192.0,60191.0,0.003823]
[1726418523671,0.166135,60192.0,60191.0,0.000823]
[1726418523897,0.166133,60193.0,60191.0,0.000823]
[1726418524125,0.166133,60193.0,60191.0,0.002823]
[1726418524561,0.01371701,60192.0,60191.0,0.002823]
[1726418524770,0.01371701,60192.0,60191.0,0.000823]
[1726418524985,0.01371701,60192.0,60191.0,0.004823]
[1726418525214,0.01371701,60192.0,60191.0,0.008823]
[1726418525429,0.01371701,60192.0,60191.0,0.004823]
[1726418525644,0.01371701,60192.0,60191.0,0.009823]
[1726418525877,0.001,60192.0,60191.0,0.508235]
[1726418526541,0.001,60192.0,60191.0,0.22586706]
[1726418526796,0.001,60192.0,60191.0,0.55814206]
[1726418527433,0.001,60192.0,60191.0,0.508235]
[1726418527665,0.001,60192.0,60191.0,0.55814206]
[1726418527885,0.001,60192.0,60191.0,0.508235]
[1726418529989,0.001,60192.0,60191.0,0.17596]
[1726418530133,0.001,60192.0,60191.0,0.508235]
[1726418530350,0.01472015,60192.0,60191.0,0.508235]
[1726418530576,0.001,60192.0,60191.0,0.84051]
[1726418530778,0.001,60192.0,60191.0,0.508235]
[1726418534678,0.001,60192.0,60191.0,0.17596]
[1726418535364,0.01470964,60192.0,60191.0,0.17596]
[1726418535578,0.001,60192.0,60191.0,0.17596]
[1726418535824,0.01470964,60192.0,60191.0,0.17596]
[1726418536025,0.001,60192.0,60191.0,0.17596]
[1726418536242,0.01472015,60192.0,60191.0,0.009823]
[1726418536443,0.001,60192.0,60191.0,0.009823]
[1726418536671,0.01472015,60192.0,60191.0,0.009823]
[1726418536881,0.167135,60192.0,60191.0,0.009823]
[1726418537111,0.167135,60192.0,60191.0,0.13524812]
[1726418537112,0.18085106,60192.0,60191.0,0.13524812]
[1726418538018,0.51312106,60192.0,60191.0,0.13524812]
[1726418538741,0.84539106,60192.0,60191.0,0.009823]
[1726418539749,0.87145819,60192.0,60191.0,0.009823]
[1726418543632,0.53918819,60192.0,60191.0,0.009623]
[1726418545112,0.51312106,60192.0,60191.0,0.009623]
[1726418548308,0.53918849,60192.0,60191.0,0.009623]
[1726418548537,0.51312106,60192.0,60191.0,0.009623]
[1726418549255,0.84539106,60192.0,60191.0,0.009623]
[1726418550240,1.17766106,60192.0,60191.0,0.009623]
[1726418550458,1.49806106,60192.0,60191.0,0.009623]
[1726418551170,1.49706106,60192.0,60191.0,0.004623]
[1726418551402,1.52312928,60192.0,60191.0,0.004623]
[1726418552112,1.52712928,60192.0,60191.0,0.004623]
[1726418552393,1.52312928,60192.0,60191.0,0.004623]
[1726418552662,1.53712928,60192.0,60191.0,0.001623]
[1726418552895,1.54112928,60192.0,60191.0,0.001623]
[1726418553369,1.53712928,60192.0,60191.0,0.001623]
[1726418553600,1.55112928,60192.0,60191.0,0.002623]
[1726418554272,1.52506106,60192.0,60191.0,0.002623]
[1726418556011,1.83898618,60192.0,60191.0,0.002623]
[1726418556261,1.71520706,60192.0,60191.0,0.002623]
[1726418556492,1.71720706,60192.0,60191.0,0.002623]
[1726418557573,1.74327735,60192.0,60191.0,0.002623]
[1726418558491,1.74127735,60192.0,60191.0,0.002623]
[1726418558960,1.74327735,60192.0,60191.0,0.002623]
[1726418559174,1.74127735,60192.0,60191.0,0.002623]
[1726418561632,1.74327735,60192.0,60191.0,0.002623]
[1726418563146,1.74127735,60192.0,60191.0,0.002623]
[1726418564318,1.84127735,60192.0,60191.0,0.002623]
[1726418564529,2.30097247,60192.0,60191.0,0.002623]
[1726418564941,2.27490218,60192.0,60191.0,0.002623]
[1726418566272,2.30490218,60192.0,60191.0,0.002623]
[1726418568344,2.33097595,60192.0,60191.0,0.002623]
[1726418568570,2.50221616,60192.0,60191.0,0.002623]
[1726418570630,2.55156243,60192.0,60191.0,0.002623]
[1726418570836,2.50221616,60192.0,60191.0,0.002623]
[1726418571716,2.50221616,60192.0,60187.0,0.000823]
[1726418571717,1.92186112,60187.0,60186.0,0.000823]
[1726418571995,2.09310133,60187.0,60186.0,0.000823]
[1726418572212,2.10435334,60187.0,60186.0,0.000823]
[1726418573070,2.10435334,60187.0,60186.0,0.001823]
[1726418573071,1.94111313,60187.0,60186.0,0.001823]
[1726418574587,1.94911313,60187.0,60186.0,0.002823]
[1726418577805,1.95889235,60187.0,60186.0,0.002823]
[1726418578031,2.13013256,60187.0,60186.0,0.002823]
[1726418578330,2.1562087,60187.0,60186.0,0.002823]
[1726418580538,1.85954337,60187.0,60186.0,0.002823]
[1726418580761,1.98496849,60187.0,60186.0,0.002823]
[1726418584537,0.49857,60172.0,60171.0,0.12542512]
[1726418585222,0.50971151,60172.0,60171.0,0.12542512]
[1726418585876,0.51071151,60172.0,60171.0,0.13142512]
[1726418586140,0.51171151,60172.0,60171.0,0.13642512]
[1726418590597,0.84409151,60172.0,60171.0,0.13642512]
[1726418590813,0.51171151,60172.0,60171.0,0.13724812]
[1726418591814,0.84409151,60172.0,60171.0,0.13724812]
[1726418592728,0.51171151,60172.0,60171.0,0.13724812]
[1726418592941,0.84409151,60172.0,60171.0,0.13724812]
[1726418593156,0.51171151,60172.0,60171.0,0.13724812]
[1726418596414,0.51171151,60172.0,60171.0,0.011823]
[1726418596850,0.84409151,60172.0,60171.0,0.011823]
[1726418597495,0.51171151,60172.0,60171.0,0.011823]
[1726418598401,0.8701685,60172.0,60171.0,0.011823]
[1726418598612,0.84409151,60172.0,60171.0,0.011823]
[1726418599118,0.51171151,60172.0,60171.0,0.011823]
[1726418599343,0.84409151,60172.0,60171.0,0.011823]
[1726418600198,0.51171151,60172.0,60171.0,0.011823]
[1726418601089,0.84409151,60172.0,60171.0,0.011823]
[1726418601329,0.84409151,60172.0,60171.0,0.011623]
[1726418601556,0.87016885,60172.0,60171.0,0.011623]
[1726418602923,0.53778885,60172.0,60171.0,0.011623]
[1726418603398,0.87016885,60172.0,60171.0,0.011623]
[1726418603879,1.49984885,60172.0,60171.0,0.011623]
[1726418604136,1.47377151,60172.0,60171.0,0.011623]
[1726418604589,1.47277151,60172.0,60171.0,0.005823]
[1726418605033,1.47177151,60172.0,60171.0,0.000823]
[1726418605258,1.48377151,60172.0,60171.0,0.000823]
[1726418605712,1.49577151,60172.0,60171.0,0.000823]
[1726418606857,1.49577151,60172.0,60170.0,0.000824]
[1726418606858,1.168351,60171.0,60170.0,0.000824]
[1726418607283,1.18022291,60171.0,60170.0,0.000824]
[1726418608381,1.19122291,60171.0,60170.0,0.000824]
[1726418608605,1.20222291,60171.0,60170.0,0.000824]
[1726418609266,1.21234135,60171.0,60170.0,0.000824]
[1726418613908,1.163389,60169.0,60168.0,0.000824]
[1726418614403,1.17522854,60169.0,60168.0,0.000824]
[1726418615117,1.18422854,60169.0,60168.0,0.000824]
[1726418615561,1.19222854,60169.0,60168.0,0.000824]
[1726418625344,0.85983154,60169.0,60168.0,0.000824]
[1726418629774,0.85983154,60169.0,60166.0,0.12542512]
[1726418629775,0.83102,60167.0,60166.0,0.12542512]
[1726418630242,0.84283743,60167.0,60166.0,0.12542512]
[1726418631219,0.85483743,60167.0,60166.0,0.12542512]
[1726418635616,0.85483743,60167.0,60156.0,0.05070926]
[1726418635617,0.166231,60157.0,60156.0,0.05070926]
[1726418635830,0.166231,60157.0,60156.0,0.12624812]
[1726418636037,0.51044933,60157.0,60156.0,0.12624812]
[1726418637165,0.51044933,60157.0,60156.0,0.13024812]
[1726418637390,0.51144933,60157.0,60156.0,0.13424812]
[1726418640312,0.51144933,60157.0,60156.0,0.13024812]
[1726418640523,0.51044933,60157.0,60156.0,0.12624812]
[1726418640764,0.84491233,60157.0,60156.0,0.000823]
[1726418640977,0.84691233,60157.0,60156.0,0.000823]
[1726418641189,0.84491233,60157.0,60156.0,0.000823]
[1726418641404,0.84668632,60157.0,60156.0,0.000823]
[1726418643499,1.17914932,60157.0,60156.0,0.000823]
[1726418643769,1.36214932,60157.0,60156.0,0.000823]
[1726418644700,1.46214932,60157.0,60156.0,0.000823]
[1726418645371,1.47228683,60157.0,60156.0,0.000823]
[1726418648081,1.49837122,60157.0,60156.0,0.000823]
[1726418653476,1.48987971,60157.0,60156.0,0.000823]
[1726418653709,0.64195371,60157.0,60156.0,0.000823]
[1726418654146,0.97441671,60157.0,60156.0,0.000823]
[1726418655319,0.94833232,60157.0,60156.0,0.000823]
[1726418658501,0.97441648,60157.0,60156.0,0.000823]
[1726418662290,0.64195348,60157.0,60156.0,0.000823]
[1726418662973,0.97441648,60157.0,60156.0,0.000823]
[1726418664953,0.94833232,60157.0,60156.0,0.000823]
[1726418665840,0.61586932,60157.0,60156.0,0.000823]
[1726418666379,2.13545832,60157.0,60156.0,0.000823]
[1726418666641,1.08862212,60154.0,60153.0,0.0001]
[1726418666864,1.75358012,60154.0,60153.0,0.0001]
[1726418667094,1.76528196,60154.0,60153.0,0.0001]
[1726418667315,1.43280296,60154.0,60153.0,0.0001]
[1726418668006,1.76328196,60154.0,60153.0,0.0001]
[1726418668261,1.77828196,60154.0,60152.0,0.0039791]
[1726418668473,1.295697,60153.0,60152.0,0.0038791]
[1726418668912,1.63987771,60153.0,60152.0,0.0038791]
[1726418670530,1.64987771,60153.0,60152.0,0.0038791]
[1726418671652,1.66187771,60153.0,60152.0,0.0038791]
[1726418672312,1.66387771,60153.0,60152.0,0.0038791]
[1726418672532,1.65187771,60153.0,60152.0,0.0038791]
[1726418673047,1.66487771,60153.0,60152.0,0.0038791]
[1726418673276,1.66287771,60153.0,60152.0,0.0038791]
[1726418675158,1.66487771,60153.0,60152.0,0.0038791]
[1726418676350,1.88317771,60153.0,60152.0,0.0038791]
[1726418677065,1.88317771,60153.0,60152.0,0.0047031]
[1726418677291,1.85982571,60153.0,60152.0,0.0047031]
[1726418677737,1.87382571,60153.0,60152.0,0.0047031]
[1726418677990,2.03106592,60153.0,60152.0,0.0047031]
[1726418678224,2.04506592,60153.0,60152.0,0.0047031]
[1726418678482,2.07115556,60153.0,60152.0,0.0047031]
[1726418678707,2.05715556,60153.0,60152.0,0.0047031]
[1726418679458,1.89991535,60153.0,60152.0,0.0047031]
[1726418680163,1.91391535,60153.0,60152.0,0.0047031]
[1726418682326,1.69361535,60153.0,60152.0,0.0047031]
[1726418682796,1.69561535,60153.0,60152.0,0.0047031]
[1726418683050,1.82104047,60153.0,60152.0,0.0047031]
[1726418683281,1.80704047,60153.0,60152.0,0.0047031]
[1726418683998,1.82104047,60153.0,60152.0,0.0047031]
[1726418684226,1.79304047,60153.0,60152.0,0.0047031]
[1726418684483,1.80704047,60153.0,60152.0,0.0047031]
[1726418684728,1.79304047,60153.0,60152.0,0.0047031]
[1726418684957,1.80704047,60153.0,60152.0,0.0047031]
[1726418686162,1.82104047,60153.0,60152.0,0.0047031]
[1726418686620,1.80704047,60153.0,60152.0,0.0047031]
[1726418687102,1.82104047,60153.0,60152.0,0.0047031]
[1726418695785,2.617053,60153.0,60152.0,0.0047031]
[1726418696025,2.60312139,60153.0,60152.0,0.0047031]
[1726418696262,2.67704246,60153.0,60152.0,0.0047031]
[1726418696483,2.31846241,60153.0,60152.0,0.0047031]
[1726418696700,2.24454675,60153.0,60152.0,0.0047031]
[1726418696915,2.31846156,60153.0,60152.0,0.0047031]
[1726418697130,2.24454675,60153.0,60152.0,0.0047031]
[1726418697376,2.34310818,60153.0,60152.0,0.0047031]
[1726418697593,2.31845632,60153.0,60152.0,0.0047031]
[1726418698682,2.25845632,60153.0,60152.0,0.0047031]
[1726418698897,2.31845632,60153.0,60152.0,0.0047031]
[1726418700056,2.34454714,60153.0,60152.0,0.0047031]
[1726418700936,2.369199,60153.0,60152.0,0.0047031]
[1726418701677,2.369199,60153.0,60143.0,1e-06]
[1726418701678,0.381262,60146.0,60143.0,1e-06]
[1726418701910,1.17176212,60144.0,60143.0,1e-06]
[1726418702177,2.043942,60144.0,60143.0,1e-06]
[1726418702411,2.37826117,60144.0,60143.0,1e-06]
[1726418702914,2.52604781,60144.0,60143.0,1e-06]
[1726418703161,2.37826117,60144.0,60143.0,1e-06]
[1726418703393,0.258289,60136.0,60135.0,0.000823]
[1726418703616,1.32079662,60136.0,60135.0,0.000823]
[1726418703865,2.20776711,60136.0,60135.0,0.000823]
[1726418704098,2.23386612,60136.0,60135.0,0.000823]
[1726418704562,2.23386612,60136.0,60110.0,0.000823]
[1726418704563,1.688704,60132.0,60110.0,0.000823]
[1726418704798,0.499035,60116.0,60110.0,0.000823]
[1726418705031,1.38984012,60116.0,60110.0,0.000823]
[1726418705272,1.27658848,60116.0,60110.0,0.000823]
[1726418705502,1.26658848,60116.0,60111.0,0.001]
[1726418705739,1.26658848,60116.0,60107.0,0.316523]
[1726418705740,0.499101,60108.0,60107.0,0.3132481]
[1726418705960,0.166367,60108.0,60107.0,0.3132481]
[1726418706201,0.17849136,60108.0,60107.0,0.3132481]
[1726418706445,0.166357,60112.0,60108.0,0.0804]
[1726418706682,0.01016051,60117.0,60108.0,0.0804]
[1726418706683,0.1,60111.0,60108.0,0.0804]
[1726418706917,0.1,60111.0,60108.0,0.0694]
[1726418707606,0.166348,60115.0,60108.0,0.235766]
[1726418707986,0.166352,60114.0,60108.0,0.235766]
[1726418707987,0.02610378,60111.0,60109.0,0.12542512]
[1726418708398,0.02610378,60111.0,60109.0,0.29178912]
[1726418708957,0.02610378,60111.0,60109.0,0.12542512]
[1726418709614,0.02610378,60111.0,60110.0,0.166361]
[1726418709828,0.00830931,60110.0,60109.0,0.12542512]
[1726418710041,0.014,60111.0,60108.0,0.224766]
[1726418710528,0.00841778,60110.0,60108.0,0.224766]
[1726418710744,0.028,60111.0,60109.0,0.29178912]
[1726418710965,0.014,60111.0,60110.0,0.166361]
[1726418711177,0.1,60117.0,60113.0,0.166352]
[1726418711405,0.1,60117.0,60115.0,0.12542512]
[1726418712316,0.16635,60114.0,60108.0,0.0584]
[1726418712530,0.166345,60116.0,60113.0,0.12642512]
[1726418712748,0.166345,60116.0,60113.0,0.12542512]
[1726418712992,0.02610266,60116.0,60113.0,0.12542512]
[1726418713197,0.02610266,60116.0,60115.0,0.001]
[1726418713631,0.19244766,60116.0,60115.0,0.000824]
[1726418713862,0.52513766,60116.0,60115.0,0.000824]
[1726418714089,0.52513766,60116.0,60115.0,0.001824]
[1726418714580,0.52513766,60116.0,60115.0,0.000824]
[1726418714799,0.52813766,60116.0,60115.0,0.001824]
[1726418715017,0.502035,60116.0,60115.0,0.001824]
[1726418715722,0.838725,60116.0,60115.0,0.001824]
[1726418715956,0.938725,60116.0,60115.0,0.001824]
[1726418716195,1.267415,60116.0,60115.0,0.001824]
[1726418716422,1.271415,60116.0,60115.0,0.002824]
[1726418718292,1.29751933,60116.0,60115.0,0.002824]
[1726418718953,1.29551933,60116.0,60115.0,0.001824]
[1726418719162,1.29051933,60116.0,60115.0,0.000824]
[1726418719381,1.29251933,60116.0,60115.0,0.000824]
[1726418719642,1.29751933,60116.0,60115.0,0.001824]
[1726418719870,1.29551933,60116.0,60115.0,0.001824]
[1726418720986,2.10871791,60116.0,60115.0,0.001824]
[1726418721218,2.11071791,60116.0,60115.0,0.001824]
[1726418721938,2.10571791,60116.0,60115.0,0.000824]
[1726418722165,2.11071791,60116.0,60115.0,0.001824]
[1726418722398,2.11071791,60116.0,60115.0,0.002824]
[1726418722637,2.10971791,60116.0,60115.0,0.001824]
[1726418723125,2.11471791,60116.0,60115.0,0.002824]
[1726418723575,2.10971791,60116.0,60115.0,0.001824]
[1726418723811,2.10571791,60116.0,60115.0,0.000824]
[1726418724306,2.11671791,60116.0,60115.0,0.001824]
[1726418725056,1.899905,60116.0,60115.0,0.000824]
[1726418725308,1.581215,60116.0,60115.0,0.001824]
[1726418725545,1.567215,60116.0,60115.0,0.001824]
[1726418726065,1.581215,60116.0,60115.0,0.001824]
[1726418726564,0.014,60116.0,60115.0,0.001824]
[1726418726814,0.028,60116.0,60115.0,0.001824]
[1726418727082,1.014,60116.0,60115.0,0.000824]
[1726418727398,1.025,60116.0,60115.0,0.001824]
[1726418727890,1.125,60116.0,60115.0,0.001824]
[1726418728110,1.114,60116.0,60115.0,0.167171]
[1726418728337,1.114,60116.0,60115.0,0.000824]
[1726418728557,1.011,60116.0,60115.0,0.001824]
[1726418728783,1.0,60116.0,60115.0,0.000824]
[1726418729010,1.013,60116.0,60115.0,0.000824]
[1726418729468,1.166345,60116.0,60115.0,0.000824]
[1726418729695,1.168345,60116.0,60115.0,0.000824]
[1726418730134,1.172345,60116.0,60115.0,0.000824]
[1726418730573,1.168345,60116.0,60115.0,0.000824]
[1726418730790,1.508035,60116.0,60115.0,0.001824]
[1726418731053,1.508035,60116.0,60115.0,0.000824]
[1726418731295,1.517035,60116.0,60115.0,0.001824]
[1726418732008,1.849725,60116.0,60115.0,0.001824]
[1726418732464,2.282415,60116.0,60115.0,0.001824]
[1726418732913,2.291415,60116.0,60115.0,0.001824]
[1726418733147,1.958725,60116.0,60115.0,0.001824]
[1726418733371,1.018,60116.0,60115.0,0.19353258]
[1726418734020,1.028,60116.0,60115.0,0.19353258]
[1726418734701,1.028,60116.0,60115.0,0.35987958]
[1726418735212,1.028,60116.0,60115.0,0.19353258]
[1726418735675,1.028,60116.0,60115.0,0.001824]
[1726418735912,1.028,60116.0,60115.0,0.19353258]
[1726418736137,1.028,60116.0,60115.0,0.001824]
[1726418736848,1.194345,60116.0,60115.0,0.001824]
[1726418738047,1.861371,60116.0,60115.0,0.001824]
[1726418738289,1.88747296,60116.0,60115.0,0.001824]
[1726418738783,2.22016296,60116.0,60115.0,0.001824]
[1726418740700,1.88747296,60116.0,60115.0,0.001824]
[1726418747583,1.05574796,60116.0,60115.0,0.19353258]
[1726418747814,1.22209296,60116.0,60115.0,0.19353258]
[1726418748032,1.55478296,60116.0,60115.0,0.19353258]
[1726418748261,1.362336,60116.0,60115.0,0.19353258]
[1726418748491,1.029646,60116.0,60115.0,0.19353258]
[1726418748729,1.195991,60116.0,60115.0,0.19353258]
[1726418748992,1.528681,60116.0,60115.0,0.19353258]
[1726418749248,1.528681,60116.0,60115.0,0.001824]
[1726418749475,1.195991,60116.0,60115.0,0.001824]
[1726418749697,1.528681,60116.0,60115.0,0.001824]
[1726418750380,1.195991,60116.0,60115.0,0.001824]
[1726418750658,1.528681,60116.0,60115.0,0.001824]
[1726418750891,1.195991,60116.0,60115.0,0.001824]
[1726418753024,1.528681,60116.0,60115.0,0.001824]
[1726418754179,1.195991,60116.0,60115.0,0.001824]
[1726418754621,1.528681,60116.0,60115.0,0.001824]
[1726418756047,1.861371,60116.0,60115.0,0.001824]
[1726418756237,1.528681,60116.0,60115.0,0.001824]
[1726418759579,1.195991,60116.0,60115.0,0.001824]
[1726418759810,1.528681,60116.0,60115.0,0.001824]
[1726418760530,1.528681,60116.0,60115.0,0.001624]
[1726418761033,1.861371,60116.0,60115.0,0.001624]
[1726418761514,1.362336,60116.0,60109.0,0.19040076]
[1726418761766,0.166355,60113.0,60109.0,0.19040076]
[1726418762006,0.166355,60113.0,60109.0,0.35676476]
[1726418762007,0.166354,60113.0,60109.0,0.35676476]
[1726418762666,0.166359,60111.0,60107.0,0.0343]
[1726418762896,0.166359,60111.0,60110.0,0.19170858]
[1726418763130,0.19245698,60113.0,60110.0,0.19170858]
[1726418763385,0.16637,60107.0,60106.0,0.19170858]
[1726418763865,0.02610298,60113.0,60097.0,0.19568768]
[1726418763866,0.166391,60100.0,60097.0,0.19568768]
[1726418764102,0.166393,60099.0,60097.0,0.19568768]
[1726418764339,0.332775,60101.0,60097.0,0.19568768]
[1726418764340,0.166388,60101.0,60097.0,0.19568768]
[1726418764573,0.1,60115.0,60097.0,0.19568768]
[1726418764820,0.166387,60101.0,60097.0,0.19568768]
[1726418765273,0.001,60099.0,60097.0,0.20268768]
[1726418765508,0.001,60099.0,60097.0,0.19568768]
[1726418766253,0.166394,60098.0,60097.0,0.0039791]
[1726418766477,0.499183,60098.0,60097.0,0.0039791]
[1726418766929,0.499183,60098.0,60097.0,0.0049791]
[1726418767178,0.499183,60098.0,60097.0,0.0039791]
[1726418767652,0.166389,60100.0,60097.0,0.0089791]
[1726418767877,0.166394,60098.0,60097.0,0.0039791]
[1726418768107,0.176394,60098.0,60097.0,0.0049791]
[1726418768334,0.166394,60098.0,60097.0,0.0039791]
[1726418768584,0.26639,60100.0,60097.0,0.19568768]
[1726418768806,0.018,60098.0,60097.0,0.19668768]
[1726418769027,0.184394,60098.0,60097.0,0.19668768]
[1726418769252,0.184394,60098.0,60097.0,0.0049791]
[1726418769475,0.184394,60098.0,60097.0,0.19668768]
[1726418770449,0.166393,60099.0,60097.0,0.19568768]
[1726418770685,0.1,60100.0,60097.0,0.19568768]
[1726418770908,0.008,60098.0,60097.0,0.19668768]
[1726418771136,0.008,60098.0,60097.0,0.19568768]
[1726418771592,0.01,60098.0,60097.0,0.19668768]
[1726418772543,0.01,60098.0,60097.0,0.19751068]
[1726418773929,0.008,60098.0,60097.0,0.19651068]
[1726418774150,0.017,60098.0,60097.0,0.19751068]
[1726418774366,0.009,60098.0,60097.0,0.19751068]
[1726418774850,0.009,60098.0,60097.0,0.69670268]
[1726418774851,0.016,60098.0,60097.0,0.69670268]
[1726418775347,0.199,60118.0,60107.0,0.332735]
[1726418775567,0.531682,60118.0,60114.0,0.19170858]
[1726418775784,0.167993,60115.0,60114.0,0.19170858]
[1726418776692,0.101646,60115.0,60105.0,0.332749]
[1726418776918,0.16636,60111.0,60108.0,0.19170858]
[1726418777594,0.166362,60110.0,60108.0,0.19170858]
[1726418777827,0.166357,60112.0,60108.0,0.19170858]
[1726418778690,0.001,60111.0,60108.0,0.19170858]
[1726418779345,0.001,60111.0,60108.0,0.35807458]
[1726418780282,0.166353,60113.0,60108.0,0.35807458]
[1726418780500,0.168356,60112.0,60108.0,0.35807458]
[1726418780716,0.002,60112.0,60108.0,0.19170858]
[1726418780942,0.332718,60111.0,60108.0,0.19170858]
[1726418781189,0.166357,60112.0,60108.0,0.19170858]
[1726418781410,0.332701,60114.0,60108.0,0.35807458]
[1726418781411,0.001,60111.0,60108.0,0.35807458]
[1726418782053,0.166354,60113.0,60108.0,0.35807458]
[1726418783551,0.002,60112.0,60108.0,0.35807458]
[1726418783771,0.002,60112.0,60108.0,0.19170858]
[1726418784014,0.166351,60114.0,60108.0,0.19170858]
[1726418784232,0.169354,60113.0,60109.0,0.166364]
[1726418784666,0.267995,60115.0,60112.0,0.19170858]
[1726418784892,0.001646,60115.0,60113.0,0.166352]
[1726418785110,0.001646,60115.0,60112.0,0.19170858]